fUST/lending_fUST_20250806
["ID","MTS","AMOUNT","RATE_DAILY","PERIOD"]
[377637991,1754472407775,1320.21582178,0.0003,120]
[377638596,1754472452469,-300.0,0.00026209,2]
[377638597,1754472452492,-24900.0,0.0002621,2]
[377638598,1754472452513,-1445.116,0.00026739,2]
[377638600,1754472452541,-2106.90129766,0.00026829,6]
[377638601,1754472452561,-168.16503093,0.00027022,2]
[377638603,1754472452582,-160.0,0.00027022,2]
[377638604,1754472452605,-215.26769691,0.00027022,2]
[377638606,1754472452625,-23339.5353376,0.00027029,2]
[377638607,1754472452645,-549.23289,0.00027122,2]
[377638609,1754472452665,-647.95572012,0.00027628,2]
[377638610,1754472452689,-216.47163855,0.0002769,2]
[377638611,1754472452710,-842.45170444,0.0002769,2]
[377638612,1754472452729,-2156.2568373,0.00027692,2]
[377638613,1754472452750,-255.76,0.00027718,10]
[377638615,1754472452771,-213.13,0.00027718,10]
[377638616,1754472452791,-177.61,0.00027718,10]
[377638618,1754472452812,-888.07,0.00027718,10]
[377638619,1754472452831,-356.1920117,0.00027727,2]
[377638620,1754472452859,-2106.90129751,0.00027728,8]
[377638621,1754472453064,-7180.08821028,0.00027728,2]
[377638779,1754472473317,1567.06510538,0.000259,120]
[377638780,1754472486125,150.0,0.00025095,2]
[377638782,1754472490155,447.9968957,0.0003,120]
[377638783,1754472497904,880.14388119,0.0003,120]
[377638784,1754472502832,188.0,0.0002,120]
[377638785,1754472507722,1683.0,0.00030041,120]
[377638786,1754472508173,1683.0,0.00030031,120]
[377638787,1754472508643,1683.0,0.00030021,120]
[377638788,1754472509014,314.62749319,7e-05,120]
[377638792,1754472517212,1142.27860171,0.00025,120]
[377638793,1754472518231,625.20163293,0.0002,120]
[377638794,1754472518924,1930.96,0.0003,120]
[377638795,1754472519925,206.16162167,0.0003,120]
[377638796,1754472520775,1299.96636136,0.00025,120]
[377638797,1754472520805,488.87797826,0.00024108,120]
[377638798,1754472520900,557.27982767,0.00030136,120]
[377638799,1754472520996,166.02862375,0.00025,120]
[377638800,1754472521086,3574.64240118,0.0002,20]
[377638801,1754472522917,173.54718536,0.0003,120]
[377638802,1754472524579,204.0889513,0.00027,120]
[377638804,1754472525728,3697.19771467,0.00029,120]
[377638805,1754472526245,1490.01850188,0.0002,120]
[377638806,1754472526534,1070.57640886,0.000255,120]
[377638807,1754472527296,1964.27746309,0.00024,120]
[377638808,1754472527678,952.88257106,0.00028767,120]
[377638810,1754472528479,220.73885235,0.0001536,120]
[377638811,1754472529133,786.1090155,0.000245,120]
[377638812,1754472529709,1066.95320971,0.00024,120]
[377638813,1754472529792,1021.63483112,0.0002,120]
[377638814,1754472530564,182.69380917,0.00027,120]
[377638815,1754472531061,17713.33521413,0.0002249,7]
[377638816,1754472531082,749.02423002,0.0002249,7]
[377638817,1754472531102,25000.0,0.0002249,7]
[377638818,1754472531123,25000.0,0.0002249,7]
[377638819,1754472531144,25000.0,0.0002249,7]
[377638820,1754472531164,13225.44747993,0.0002249,7]
[377638821,1754472531220,1727.00966911,0.00030137,120]
[377638822,1754472531261,707.67396597,0.00026,120]
[377638823,1754472531348,292.13016204,0.00024,120]
[377638824,1754472531518,423.29073779,0.00025,120]
[377638825,1754472531793,1178.08859386,0.00027,120]
[377638826,1754472531902,693.01317696,0.0003,120]
[377638827,1754472532200,189.85786879,0.0003,120]
[377638829,1754472532711,266.47098936,0.00023,120]
[377638830,1754472542795,586.76258746,0.0003,120]
[377638834,1754472587734,391.1750583,0.0003,120]
[377638835,1754472603139,1258.8,0.00030137,120]
[377638836,1754472628221,1037.0,0.00030031,120]
[377638837,1754472628838,1037.0,0.00030021,120]
[377638838,1754472629295,1037.0,0.00030011,120]
[377638853,1754472632456,-1024.88292858,0.00026,30]
[377638854,1754472632468,-831.68458513,0.00026,30]
[377638855,1754472632478,-500.0,0.00027773,5]
[377638856,1754472632487,-289.88,0.00027839,2]
[377638857,1754472632497,-527.46908335,0.00028,3]
[377638858,1754472632506,-169.748389,0.00028164,2]
[377638859,1754472632517,-2113.14278128,0.00028273,9]
[377638861,1754472632527,-184.646603,0.00028312,2]
[377638863,1754472632537,-300.0,0.00028319,2]
[377638865,1754472632547,-1000.0,0.00028321,5]
[377638867,1754472632557,-842.45170444,0.00028472,2]
[377638869,1754472632567,-500.0,0.00028473,5]
[377638871,1754472632577,-500.0,0.00028473,5]
[377638873,1754472632587,-500.0,0.00028473,5]
[377638874,1754472632597,-500.0,0.00028473,5]
[377638875,1754472632607,-500.0,0.00028473,5]
[377638876,1754472632617,-38490.64814399,0.00028473,2]
[377638877,1754472632626,-187.23,0.0002848,2]
[377638878,1754472632636,-9928.09684131,0.000285,5]
[377638879,1754472632795,260.7833722,0.0003,120]
[377638960,1754472638179,-1009.13986329,0.000285,5]
[377638961,1754472638190,-2320.95596561,0.000285,5]
[377638962,1754472638203,-594.98404894,0.000285,5]
[377638963,1754472638214,-561.84778779,0.000285,5]
[377638964,1754472638226,-1036.8367471,0.000285,5]
[377638965,1754472638237,-7899.57095415,0.000285,5]
[377638966,1754472638248,-1584.02077076,0.000285,7]
[377638967,1754472638257,-408.0,0.0002859,2]
[377638968,1754472638268,-197.75533508,0.0002874,30]
[377638969,1754472638281,-9.24466492,0.0002874,30]
[377638970,1754472638296,-200.0,0.0002883,15]
[377638971,1754472638306,-300.0,0.0002883,15]
[377638972,1754472638315,-527.46908335,0.00029,10]
[377638973,1754472638325,-527.46908335,0.00029,10]
[377638974,1754472638334,-527.46908335,0.00029,10]
[377638975,1754472638345,-1000.0,0.00029021,5]
[377638976,1754472638355,-1000.0,0.00029021,5]
[377638977,1754472638364,-1000.0,0.00029021,5]
[377638978,1754472638374,-1000.0,0.00029021,5]
[377638979,1754472638383,-504.80839911,0.00029122,11]
[377638981,1754472638395,-1076.54672896,0.00029122,11]
[377638983,1754472638419,-351.27555648,0.00029122,11]
[377638984,1754472638443,-180.51209665,0.00029122,11]
[377638985,1754472638453,-150.26,0.00029172,15]
[377638986,1754472638462,-170.16,0.00029172,15]
[377638987,1754472638472,-207.0,0.0002924,30]
[377638988,1754472638481,-150.26,0.00029272,15]
[377638989,1754472638491,-170.16,0.00029272,15]
[377638990,1754472638500,-187.23,0.0002929,2]
[377638991,1754472638510,-150.26,0.00029372,15]
[377638992,1754472638521,-170.16,0.00029372,15]
[377638993,1754472638530,-150.26,0.00029472,15]
[377638994,1754472638540,-170.16,0.00029472,15]
[377638995,1754472638549,-850.28,0.0002949,3]
[377638996,1754472638558,-2044.95,0.000295,7]
[377638997,1754472638568,-283.41,0.00029516,3]
[377638998,1754472638578,-566.83,0.00029558,3]
[377638999,1754472638587,-1446.89120276,0.00029568,5]
[377639000,1754472638597,-1500.0,0.00029568,5]
[377639001,1754472638606,-1500.0,0.00029568,5]
[377639002,1754472638616,-160.0,0.00029571,2]
[377639003,1754472638626,-150.26,0.00029572,15]
[377639004,1754472638635,-170.16,0.00029572,15]
[377639005,1754472638645,-151.0,0.000296,18]
[377639006,1754472638655,-150.26,0.00029672,15]
[377639007,1754472638665,-170.2,0.00029672,15]
[377639008,1754472638674,-187.23,0.00029722,2]
[377639009,1754472638683,-207.0,0.0002973,30]
[377639010,1754472638693,-150.26,0.00029772,15]
[377639011,1754472638702,-150.26,0.00029872,15]
[377639012,1754472638711,-500.0,0.00029873,5]
[377639013,1754472638721,-500.0,0.00029873,5]
[377639014,1754472638730,-500.0,0.00029873,5]
[377639015,1754472638740,-500.0,0.00029873,5]
[377639016,1754472638749,-500.0,0.00029873,5]
[377639017,1754472638759,-500.0,0.00029873,5]
[377639018,1754472638768,-500.0,0.00029873,5]
[377639019,1754472638780,-502.55924829,0.00029873,5]
[377639020,1754472638789,-500.0,0.00029873,5]
[377639021,1754472638799,-500.0,0.00029873,5]
[377639022,1754472638808,-500.0,0.00029873,5]
[377639023,1754472638817,-500.0,0.00029873,5]
[377639024,1754472638826,-500.0,0.00029873,5]
[377639025,1754472638836,-151.0,0.000299,13]
[377639026,1754472638845,-133386.16870465,0.000299,2]
[377639027,1754472638855,-15942.7595744,0.00029954,2]
[377639028,1754472638864,-737.71722287,0.00029954,2]
[377639029,1754472638874,-2113.1427812,0.00029971,13]
[377639030,1754472638884,-2426.77518385,0.00029972,2]
[377639031,1754472638893,-150.26,0.00029972,15]
[377639032,1754472638903,-500.0,0.00029973,5]
[377639033,1754472638912,-150.0,0.00029973,5]
[377639034,1754472638922,-683.69755715,0.0002998,2]
[377639035,1754472638931,-16084.94246214,0.0002999,2]
[377639036,1754472638941,-12498.02499946,0.0003,2]
[377639037,1754472638951,-31885.5191489,0.00030041,2]
[377639038,1754472638960,-1475.43444574,0.00030041,2]
[377639039,1754472638969,-119875.72033829,0.00030051,2]
[377639040,1754472638979,-150.26,0.00030072,15]
[377639041,1754472638988,-320.44311548,0.00030073,5]
[377639042,1754472638998,-308.83959206,0.00030073,5]
[377639043,1754472639007,-500.0,0.00030073,5]
[377639044,1754472639016,-500.0,0.00030073,5]
[377639045,1754472639027,-500.0,0.00030073,5]
[377639046,1754472639036,-500.0,0.00030073,5]
[377639047,1754472639045,-500.0,0.00030073,2]
[377639048,1754472639055,-500.0,0.00030073,5]
[377639049,1754472639065,-150.0,0.00030073,5]
[377639050,1754472639075,-506.155306,0.00030073,5]
[377639051,1754472639084,-15942.7595744,0.0003009,2]
[377639052,1754472639093,-737.71722287,0.0003009,2]
[377639053,1754472639102,-10449.77,0.000301,7]
[377639054,1754472639112,-216.47163855,0.000301,7]
[377639055,1754472639121,-2000.0,0.00030116,5]
[377639056,1754472639131,-500.0,0.00030116,5]
[377639057,1754472639141,-400.0,0.00030119,2]
[377639058,1754472639150,-45019.94284299,0.0003013,2]
[377639059,1754472639160,-500.0,0.00030137,7]
[377639060,1754472639169,-500.0,0.00030137,7]
[377639061,1754472639178,-357.29,0.00030137,2]
[377639062,1754472639188,-400.0,0.00030137,120]
[377639063,1754472639197,-161.0,0.00030137,30]
[377639064,1754472639206,-500.0,0.0003016,5]
[377639065,1754472639216,-500.0,0.00030161,120]
[377639066,1754472639225,-500.0,0.00030161,120]
[377639067,1754472639235,-500.0,0.00030161,120]
[377639068,1754472639244,-500.0,0.00030161,120]
[377639069,1754472639253,-150.26,0.00030172,15]
[377639070,1754472639263,-500.0,0.00030173,5]
[377639071,1754472639275,-500.0,0.00030173,5]
[377639072,1754472639285,-151.0,0.000302,14]
[377639073,1754472639294,-961.4018799,0.000302,2]
[377639074,1754472639303,-207.0,0.0003022,30]
[377639075,1754472639313,-150.26,0.00030272,15]
[377639076,1754472639323,-2689.11363669,0.0003029,15]
[377639077,1754472639331,-150.26,0.00030372,15]
[377639078,1754472639340,-1000.0,0.00030421,5]
[377639079,1754472639352,-1000.0,0.00030421,5]
[377639080,1754472639361,-1000.0,0.00030421,5]
[377639081,1754472639370,-1000.0,0.00030421,5]
[377639082,1754472639379,-1000.0,0.00030421,5]
[377639083,1754472639389,-1000.0,0.00030421,5]
[377639084,1754472639399,-1021.19136704,0.00030421,5]
[377639085,1754472639408,-1000.0,0.00030421,5]
[377639086,1754472639418,-1000.0,0.00030421,5]
[377639087,1754472639427,-1000.0,0.00030421,5]
[377639088,1754472639437,-1000.0,0.00030421,5]
[377639089,1754472639448,-1000.0,0.00030421,5]
[377639090,1754472639457,-2426.77518385,0.00030432,2]
[377639091,1754472639467,-150.26,0.00030472,15]
[377639092,1754472639478,-151.0,0.000305,17]
[377639093,1754472639487,-152.241848,0.00030519,2]
[377639094,1754472639497,-150.95238527,0.00030521,5]
[377639095,1754472639507,-150.26,0.00030572,15]
[377639096,1754472639517,-420.0,0.00030574,2]
[377639097,1754472639527,-500.0,0.00030621,5]
[377639098,1754472639537,-1000.0,0.00030621,2]
[377639099,1754472639546,-501.54931793,0.00030621,5]
[377639100,1754472639556,-1000.0,0.00030621,5]
[377639101,1754472639566,-601.9764861,0.00030621,5]
[377639102,1754472639577,-152.18536256,0.00030621,5]
[377639103,1754472639587,-1007.76762725,0.00030664,5]
[377639104,1754472639596,-150.26,0.00030672,15]
[377639105,1754472639606,-500.0,0.00030702,2]
[377639106,1754472639615,-207.0,0.0003072,30]
[377639107,1754472639625,-500.0,0.00030721,5]
[377639108,1754472639634,-1000.75836931,0.00030721,5]
[377639109,1754472639643,-150.26,0.00030772,15]
[377639110,1754472639652,-500.0,0.00030777,2]
[377639111,1754472639661,-151.0,0.000308,13]
[377639112,1754472639671,-2113.1427812,0.0003082,14]
[377639113,1754472639679,-150.26,0.00030872,15]
[377639114,1754472639688,-15942.7595744,0.00030878,2]
[377639115,1754472639697,-737.71722287,0.00030878,2]
[377639116,1754472639706,-566.82,0.00030886,3]
[377639117,1754472639716,-2426.77518385,0.00030892,2]
[377639118,1754472639725,-2044.95,0.000309,7]
[377639119,1754472639735,-1133.66,0.00030928,3]
[377639120,1754472639744,-19228.97878596,0.00030947,5]
[377639121,1754472639753,-1500.0,0.00030968,5]
[377639122,1754472639762,-1500.0,0.00030968,5]
[377639123,1754472639772,-1500.0,0.00030968,5]
[377639124,1754472639781,-1002.98394793,0.00030968,5]
[377639125,1754472639790,-1500.0,0.00030968,5]
[377639126,1754472639799,-1500.0,0.00030968,5]
[377639127,1754472639808,-430.33298777,0.00030968,5]
[377639128,1754472639817,-1348.96461843,0.00030968,5]
[377639129,1754472639825,-1026.64978304,0.00030968,5]
[377639130,1754472639834,-1500.0,0.00030968,5]
[377639131,1754472639843,-150.26,0.00030972,15]
[377639132,1754472639853,-551.72797085,0.00030973,5]
[377639133,1754472639862,-150.0,0.00030973,3]
[377639134,1754472639871,-501.57996362,0.00030973,5]
[377639135,1754472639880,-461.26544088,0.00030973,7]
[377639136,1754472639890,-15942.7595744,0.0003099,2]
[377639137,1754472639899,-737.71722287,0.0003099,2]
[377639138,1754472639908,-302.24859597,0.0003099,2]
[377639139,1754472639917,-2933.60383739,0.00031,120]
[377639140,1754472639926,-500.0,0.00031031,2]
[377639141,1754472639935,-998.3412815,0.00031068,5]
[377639142,1754472639944,-150.26,0.00031072,15]
[377639143,1754472639954,-500.0,0.00031073,5]
[377639144,1754472639963,-500.0,0.00031073,5]
[377639145,1754472639972,-751.56,0.000311,2]
[377639146,1754472639982,-151.0,0.000311,12]
[377639147,1754472639994,-1501.969113,0.000311,5]
[377639148,1754472640003,-160.0,0.00031122,2]
[377639149,1754472640013,-461.26544088,0.00031145,3]
[377639150,1754472640023,-151.0,0.00031145,7]
[377639151,1754472640032,-151.0,0.00031145,7]
[377639152,1754472640042,-151.0,0.00031145,7]
[377639153,1754472640050,-151.0,0.00031145,7]
[377639154,1754472640060,-151.0,0.00031145,7]
[377639155,1754472640069,-290.644915,0.00031145,7]
[377639156,1754472640079,-151.0,0.00031145,7]
[377639157,1754472640089,-209.730705,0.00031145,7]
[377639158,1754472640098,-151.0,0.00031145,7]
[377639159,1754472640108,-151.0,0.00031146,7]
[377639160,1754472640117,-151.0,0.00031146,7]
[377639161,1754472640126,-151.0,0.00031146,7]
[377639162,1754472640136,-151.0,0.00031146,7]
[377639163,1754472640146,-151.0,0.00031146,7]
[377639164,1754472640155,-151.0,0.00031146,7]
[377639165,1754472640165,-151.0,0.00031146,7]
[377639166,1754472640174,-151.0,0.00031146,7]
[377639167,1754472640184,-151.0,0.00031146,7]
[377639168,1754472640194,-151.0,0.00031146,7]
[377639169,1754472640204,-151.0,0.00031146,7]
[377639170,1754472640214,-254.977655,0.00031146,7]
[377639171,1754472640224,-151.0,0.00031146,7]
[377639172,1754472640233,-151.0,0.00031146,7]
[377639173,1754472640243,-151.0,0.00031146,7]
[377639174,1754472640253,-151.0,0.00031146,7]
[377639175,1754472640263,-151.0,0.00031146,7]
[377639176,1754472640276,-151.0,0.00031146,7]
[377639177,1754472640286,-151.0,0.00031146,7]
[377639178,1754472640296,-151.0,0.00031146,7]
[377639179,1754472640307,-151.0,0.00031146,7]
[377639180,1754472640317,-151.0,0.00031146,7]
[377639181,1754472640327,-151.0,0.00031146,7]
[377639182,1754472640337,-151.0,0.00031146,7]
[377639183,1754472640347,-151.0,0.00031146,7]
[377639184,1754472640357,-151.0,0.00031146,7]
[377639185,1754472640367,-151.0,0.00031146,7]
[377639186,1754472640377,-151.0,0.00031146,7]
[377639187,1754472640388,-151.0,0.00031146,7]
[377639188,1754472640397,-151.0,0.00031146,7]
[377639189,1754472640407,-151.0,0.00031146,7]
[377639190,1754472640416,-151.0,0.00031146,7]
[377639191,1754472640425,-256.71208,0.00031146,7]
[377639192,1754472640435,-227.37840984,0.00031146,7]
[377639193,1754472640444,-151.0,0.00031147,7]
[377639194,1754472640453,-151.0,0.00031147,7]
[377639195,1754472640463,-151.0,0.00031147,7]
[377639196,1754472640474,-151.0,0.00031147,7]
[377639197,1754472640612,-151.0,0.00031147,7]
[377639198,1754472640622,-151.0,0.00031147,7]
[377639199,1754472640631,-151.0,0.00031147,7]
[377639200,1754472640641,-199.575782,0.00031147,7]
[377639201,1754472640650,-151.0,0.00031147,7]
[377639202,1754472640659,-151.0,0.00031147,7]
[377639203,1754472640669,-151.0,0.00031147,7]
[377639204,1754472640679,-151.0,0.00031147,7]
[377639205,1754472640690,-151.0,0.00031147,7]
[377639206,1754472640700,-151.0,0.00031147,7]
[377639207,1754472640709,-179.846017,0.00031147,7]
[377639208,1754472640719,-151.0,0.00031147,7]
[377639209,1754472640728,-151.0,0.00031147,7]
[377639210,1754472640738,-151.0,0.00031147,7]
[377639211,1754472640748,-151.0,0.00031147,7]
[377639212,1754472640757,-151.0,0.00031147,7]
[377639213,1754472640766,-151.0,0.00031147,7]
[377639214,1754472640776,-151.0,0.00031147,7]
[377639215,1754472640786,-151.0,0.00031147,7]
[377639216,1754472640795,-151.0,0.00031147,7]
[377639217,1754472640805,-151.0,0.00031147,7]
[377639218,1754472640814,-151.0,0.00031147,7]
[377639219,1754472640823,-151.0,0.00031147,7]
[377639220,1754472640832,-151.0,0.00031147,7]
[377639221,1754472640842,-151.0,0.00031147,7]
[377639222,1754472640851,-151.0,0.00031147,7]
[377639223,1754472640860,-151.0,0.00031147,7]
[377639224,1754472640870,-207.788242,0.00031147,7]
[377639225,1754472640879,-203.0,0.0003115,29]
[377639226,1754472640888,-160.0,0.00031167,3]
[377639227,1754472640898,-207.68524764,0.00031167,5]
[377639228,1754472640907,-1500.0,0.00031168,2]
[377639229,1754472640916,-1000.0,0.00031168,5]
[377639230,1754472640926,-150.26,0.00031172,15]
[377639231,1754472640936,-500.0,0.00031173,5]
[377639232,1754472640945,-337.73291325,0.00031173,5]
[377639233,1754472640954,-15942.7595744,0.00031185,2]
[377639234,1754472640963,-737.71722287,0.00031185,2]
[377639235,1754472640972,-152.241848,0.00031195,2]
[377639236,1754472640981,-156.479825,0.00031195,2]
[377639237,1754472640991,-152.241848,0.00031195,2]
[377639238,1754472641001,-156.479824,0.00031195,2]
[377639239,1754472641010,-160.0,0.000312,3]
[377639240,1754472641020,-3807.6,0.000312,7]
[377639241,1754472641030,-150.0,0.000312,2]
[377639242,1754472641039,-5402.33,0.000312,2]
[377639243,1754472641049,-207.0,0.0003121,30]
[377639245,1754472641059,-500.0,0.0003123,2]
[377639247,1754472641068,-150.26,0.00031272,15]
[377639248,1754472641078,-2426.77518385,0.00031352,2]
[377639249,1754472641088,-150.26,0.00031372,15]
[377639250,1754472641097,-151.0,0.000314,11]
[377639252,1754472641107,-289.88,0.00031416,2]
[377639253,1754472641116,-7000.0,0.00031428,3]
[377639254,1754472641125,-152.241848,0.00031431,3]
[377639255,1754472641134,-152.241848,0.00031431,3]
[377639256,1754472641144,-150.26,0.00031472,15]
[377639257,1754472641154,-216.47163855,0.000315,3]
[377639258,1754472641163,-500.0,0.00031516,5]
[377639259,1754472641172,-500.0,0.00031516,5]
[377639260,1754472641181,-2000.0,0.00031516,5]
[377639261,1754472641191,-1000.0,0.00031516,5]
[377639262,1754472641201,-1000.0,0.00031516,5]
[377639263,1754472641210,-2000.0,0.00031516,5]
[377639264,1754472641220,-150.26,0.00031572,15]
[377639265,1754472641229,-408.0,0.0003159,2]
[377639266,1754472641239,-151.0,0.000316,12]
[377639267,1754472641248,-200.0,0.00031602,15]
[377639269,1754472641258,-200.0,0.00031602,15]
[377639271,1754472641269,-300.0,0.00031602,15]
[377639273,1754472641279,-1002.45798247,0.00031621,5]
[377639275,1754472641288,-1000.0,0.00031621,5]
[377639277,1754472641298,-2113.1427812,0.00031669,16]
[377639279,1754472641307,-150.26,0.00031672,15]
[377639281,1754472641316,-151.0,0.000317,14]
[377639283,1754472641326,-542.97728237,0.00031701,7]
[377639285,1754472641336,-1631.49597332,0.00031716,2]
[377639287,1754472641346,-502.57888164,0.00031721,5]
[377639289,1754472641356,-201.93691006,0.00031721,5]
[377639291,1754472641365,-150.26,0.00031772,15]
[377639293,1754472641374,-151.0,0.000318,15]
[377639296,1754472641384,-15942.7595744,0.00031802,2]
[377639298,1754472641393,-737.71722287,0.00031802,2]
[377639300,1754472641403,-9998.17139172,0.00031812,2]
[377639302,1754472641412,-2426.77518385,0.00031812,2]
[377639304,1754472641421,-161.52264247,0.00031812,2]
[377639305,1754472641431,-31885.5191489,0.0003186,2]
[377639308,1754472641440,-1475.43444574,0.0003186,2]
[377639310,1754472641450,-161.0,0.00031864,30]
[377639312,1754472641459,-50000.0,0.0003187,7]
[377639314,1754472641469,-1320.91400603,0.0003187,2]
[377639316,1754472641484,-48679.08599397,0.0003187,2]
[377639318,1754472641493,-1037.0,0.00031871,120]
[377639320,1754472641503,-150.26,0.00031872,15]
[377639322,1754472641512,-1389.0,0.00031878,52]
[377639324,1754472641521,-1037.0,0.00031881,120]
[377639326,1754472641531,-1037.0,0.00031881,120]
[377639328,1754472641541,-1683.0,0.00031882,120]
[377639330,1754472641550,-1037.0,0.00031891,120]
[377639332,1754472641558,-1037.0,0.00031891,120]
[377639334,1754472641567,-1683.0,0.00031892,120]
[377639336,1754472641577,-1683.0,0.00031892,120]
[377639338,1754472641586,-350.15648856,0.00031901,2]
[377639340,1754472641595,-385082.71779184,0.00031901,20]
[377639405,1754472642210,-312.16666667,0.00028,3]
[377639407,1754472642220,-312.16666667,0.00029,10]
[377639409,1754472642229,-312.16666667,0.00029,10]
[377639411,1754472642238,-6644.06729699,0.00031901,20]
[377644864,1754472700663,1760.95231786,0.00024551,2]
[377644925,1754472800097,172.291603,0.00013699,2]
[377644927,1754472849837,1771.37981178,0.00024551,2]
[377644928,1754472903139,287.63111418,0.00030137,120]
[377644929,1754472997006,1782.77191078,0.00024551,2]
[377644931,1754473159755,1723.34618044,0.00024551,2]
[377644932,1754473197410,500.0,0.00030137,120]
[377644934,1754473337677,1665.90130772,0.00024551,2]
[377644935,1754473366847,3550.366854,0.00028037,120]
[377644938,1754473754095,-150.0,0.00025937,2]
[377644939,1754473754117,-1266.7676842,0.00026941,2]
[377644940,1754473754136,-160.0,0.00027625,2]
[377644941,1754473754156,-216.47163855,0.00027627,2]
[377644942,1754473754177,-160.0,0.00027627,2]
[377644943,1754473754196,-4312.68850389,0.00027628,2]
[377644944,1754473754217,-631.588685,0.0002774,30]
[377644945,1754473754237,-300.0,0.00027785,2]
[377644946,1754473754264,-1578.47519549,0.00027789,8]
[377644947,1754473754284,-657.22911591,0.000279,2]
[377644948,1754473754304,-500.0,0.00027973,5]
[377644949,1754473754325,-8235.57938078,0.00027989,2]
[377644950,1754473768624,172.291603,0.00013699,2]
[377644952,1754473770094,-1546.9202,0.00027989,2]
[377644953,1754473774132,-2273.9422454,0.00027989,2]
[377644997,1754473838450,-156.0,0.00027878,2]
[377644998,1754473838460,-300.0,0.00027988,2]
[377644999,1754473838470,-12843.55817382,0.00027989,2]
[377645000,1754473838479,-160.0,0.00028,10]
[377645001,1754473838490,-312.16666667,0.00028,3]
[377645002,1754473838499,-489.95118,0.00028037,2]
[377645003,1754473838509,-169.748389,0.00028321,2]
[377645004,1754473838519,-169.748389,0.00028321,41]
[377645005,1754473838530,-169.748389,0.00028321,80]
[377645006,1754473838539,-169.748389,0.00028321,119]
[377645007,1754473838549,-1000.0,0.00028521,5]
[377645008,1754473838558,-207.05,0.00028551,2]
[377645009,1754473838567,-1578.47519548,0.00028655,10]
[377645010,1754473838577,-312.16666667,0.00029,10]
[377645011,1754473838588,-312.16666667,0.00029,10]
[377645012,1754473838597,-527.46908335,0.00029,10]
[377645013,1754473838607,-1500.0,0.00029068,5]
[377645014,1754473838616,-150.26,0.00029158,15]
[377645015,1754473838625,-204.2,0.00029161,15]
[377645016,1754473838636,-2148.0,0.00029176,2]
[377645017,1754473838645,-150.26,0.00029184,15]
[377645018,1754473838655,-150.26,0.00029184,15]
[377645019,1754473838666,-150.26,0.00029284,15]
[377645020,1754473838675,-150.26,0.00029384,15]
[377645021,1754473838685,-150.26,0.00029484,15]
[377645022,1754473838696,-1578.47519548,0.00029521,12]
[377645023,1754473838705,-150.26,0.00029584,15]
[377645024,1754473838716,-2000.0,0.00029616,5]
[377645025,1754473838725,-162.24347196,0.00029671,30]
[377645026,1754473838735,-150.26,0.00029684,15]
[377645027,1754473838745,-2200.0,0.00029866,2]
[377645028,1754473838755,-500.0,0.00029866,2]
[377645029,1754473838765,-1635.96,0.000299,7]
[377645030,1754473838775,-3000.0,0.00030026,2]
[377645031,1754473838785,-842.45170444,0.000301,7]
[377645032,1754473838795,-400.0,0.00030137,120]
[377645033,1754473838805,-500.0,0.00030164,5]
[377645034,1754473838815,-4000.0,0.00030221,2]
[377645035,1754473838825,-420.0,0.00030227,2]
[377645036,1754473838835,-1578.47519548,0.00030387,14]
[377645037,1754473838845,-400.0,0.000305,10]
[377645038,1754473838854,-200.0,0.00030565,15]